bitfinex-derivatives/quotes_BTCF0:USTF0_20241128
["timestamp","ask_amount","ask_price","bid_price","bid_amount"]
[1732767808719,0.79387027,95736.0,95735.0,1e-08]
[1732767809116,0.052192,95709.0,95706.0,0.21551297]
[1732767809314,0.052192,95709.0,95707.0,0.052193]
[1732767810117,0.052192,95709.0,95708.0,0.00012027]
[1732767810419,0.060192,95709.0,95708.0,0.00012027]
[1732767811022,0.008,95709.0,95708.0,0.00012027]
[1732767811725,0.009,95709.0,95708.0,0.05331227]
[1732767811917,0.014,95709.0,95708.0,0.05331227]
[1732767812824,0.009,95709.0,95708.0,0.05331227]
[1732767813026,0.014,95709.0,95708.0,0.05331227]
[1732767818636,0.014,95709.0,95708.0,0.00112027]
[1732767821037,0.03106127,95709.0,95708.0,0.00112027]
[1732767821339,0.014,95709.0,95708.0,0.00112027]
[1732767821640,0.32744,95709.0,95708.0,0.00112027]
[1732767821836,0.014,95709.0,95708.0,0.00112027]
[1732767822637,0.1389868,95709.0,95708.0,0.00112027]
[1732767822840,0.15571736,95709.0,95708.0,0.00112027]
[1732767823036,0.1389868,95709.0,95708.0,0.00112027]
[1732767823243,0.014,95709.0,95708.0,0.05331227]
[1732767824842,0.014,95709.0,95708.0,0.00112027]
[1732767826936,0.014,95709.0,95708.0,0.05331227]
[1732767826937,0.066192,95709.0,95708.0,0.05331227]
[1732767829746,0.19117888,95709.0,95708.0,0.05331227]
[1732767830132,0.19117888,95709.0,95708.0,0.00112027]
[1732767830441,0.066192,95709.0,95708.0,0.00112027]
[1732767832439,0.22238126,95709.0,95708.0,0.00112027]
[1732767832841,0.22261668,95709.0,95708.0,0.00112027]
[1732767833639,0.43040042,95709.0,95708.0,0.00112027]
[1732767833839,0.052193,95706.0,95705.0,0.00156722]
[1732767834034,0.052203,95689.0,95688.0,0.052203]
[1732767834234,0.12514606,95693.0,95688.0,0.01702517]
[1732767834434,0.12514606,95693.0,95687.0,0.0327]
[1732767834641,0.12514606,95693.0,95689.0,0.18456954]
[1732767834841,0.12514606,95694.0,95693.0,0.0522]
[1732767835040,0.17734606,95694.0,95693.0,0.0522]
[1732767835433,0.0522,95694.0,95693.0,0.0522]
[1732767836437,0.17732407,95694.0,95693.0,0.0522]
[1732767836734,0.17832407,95694.0,95693.0,0.0522]
[1732767837142,0.0532,95694.0,95693.0,0.0522]
[1732767837750,0.001,95694.0,95693.0,0.0522]
[1732767840542,0.001,95694.0,95693.0,0.23676954]
[1732767840843,0.001,95694.0,95693.0,0.0522]
[1732767842043,0.0532,95694.0,95693.0,0.0522]
[1732767844052,0.0532,95694.0,95688.0,0.18456954]
[1732767844053,0.052203,95689.0,95688.0,0.052203]
[1732767845449,0.052203,95689.0,95688.0,0.055203]
[1732767845937,0.052203,95689.0,95688.0,0.23977254]
[1732767846442,0.052203,95689.0,95688.0,0.003]
[1732767846837,0.17732407,95694.0,95692.0,0.052201]
[1732767847040,0.17732407,95693.0,95692.0,0.052201]
[1732767847244,0.12512407,95693.0,95692.0,0.052201]
[1732767847563,0.12512407,95702.0,95696.0,0.052199]
[1732767847845,0.052192,95708.0,95701.0,0.3608]
[1732767848046,0.12512407,95709.0,95708.0,0.052192]
[1732767848854,0.12512407,95711.0,95709.0,0.052192]
[1732767849042,0.30516407,95712.0,95711.0,0.052191]
[1732767849348,0.12509571,95712.0,95711.0,0.052191]
[1732767849549,0.12509571,95712.0,95709.0,0.052192]
[1732767849550,0.1816078,95718.0,95717.0,0.052187]
[1732767851343,0.1816078,95718.0,95717.0,0.06909355]
[1732767851553,0.1906078,95718.0,95717.0,0.07009355]
[1732767852047,0.1986078,95718.0,95717.0,0.07109355]
[1732767852244,0.0185678,95718.0,95717.0,0.07109355]
[1732767854754,0.0185678,95718.0,95717.0,0.054187]
[1732767863363,0.017,95718.0,95717.0,0.054187]
[1732767869863,0.017,95718.0,95717.0,0.09657691]
[1732767871561,0.017,95718.0,95717.0,0.086787]
[1732767873765,0.11068991,95718.0,95717.0,0.086787]
[1732767874764,0.017,95718.0,95717.0,0.002]
[1732767874967,0.243067,95718.0,95717.0,0.002]
[1732767875261,0.36797062,95718.0,95717.0,0.002]
[1732767875464,0.243067,95718.0,95717.0,0.002]
[1732767877462,0.39939759,95718.0,95717.0,0.002]
[1732767878368,0.243067,95718.0,95717.0,0.002]
[1732767878571,0.39939759,95718.0,95717.0,0.002]
[1732767878974,0.243067,95718.0,95717.0,0.002]
[1732767879759,0.29382884,95718.0,95717.0,0.002]
[1732767881472,0.243067,95718.0,95717.0,0.002]
[1732767881868,0.39948587,95718.0,95717.0,0.002]
[1732767882066,0.243067,95718.0,95717.0,0.002]
[1732767882676,0.39948689,95718.0,95717.0,0.002]
[1732767883178,0.243067,95718.0,95717.0,0.002]
[1732767884377,0.069187,95718.0,95717.0,0.002]
[1732767884578,0.18844,95718.0,95717.0,0.054187]
[1732767884782,0.017,95718.0,95717.0,0.054187]
[1732767886171,0.01,95718.0,95717.0,0.053187]
[1732767886781,0.004,95718.0,95717.0,0.052187]
[1732767888077,0.006,95718.0,95717.0,0.052187]
[1732767888777,0.060187,95718.0,95717.0,0.052187]
[1732767888976,0.008,95718.0,95717.0,0.052187]
[1732767889573,0.008,95718.0,95717.0,0.053187]
[1732767889574,0.013,95718.0,95717.0,0.053187]
[1732767890084,0.013,95718.0,95717.0,0.06682161]
[1732767890581,0.013,95718.0,95717.0,0.053187]
[1732767890778,0.013,95718.0,95717.0,0.0669035]
[1732767891376,0.011,95718.0,95717.0,0.0669035]
[1732767891883,0.004,95718.0,95717.0,0.0659035]
[1732767892078,0.01,95718.0,95717.0,0.0669035]
[1732767892277,0.011,95718.0,95717.0,0.0669035]
[1732767892577,0.005,95718.0,95717.0,0.0659035]
[1732767892781,0.005,95718.0,95717.0,0.0669035]
[1732767892782,0.012,95718.0,95717.0,0.0669035]
[1732767893077,0.01,95718.0,95717.0,0.0669035]
[1732767893281,0.007,95718.0,95717.0,0.0659035]
[1732767894478,0.008,95718.0,95717.0,0.0659035]
[1732767894877,0.008,95718.0,95717.0,0.052187]
[1732767895180,0.009,95718.0,95717.0,0.06592827]
[1732767895678,0.009,95718.0,95717.0,0.052187]
[1732767895882,0.008,95718.0,95717.0,0.06592873]
[1732767896081,0.004,95718.0,95717.0,0.06592873]
[1732767896386,0.008,95718.0,95717.0,0.06592873]
[1732767896591,0.01,95718.0,95717.0,0.06592873]
[1732767897780,0.006,95718.0,95717.0,0.06592873]
[1732767897980,0.007,95718.0,95717.0,0.06592873]
[1732767898281,0.007,95718.0,95717.0,0.06605333]
[1732767898686,0.004,95718.0,95717.0,0.06605317]
[1732767898884,0.005,95718.0,95717.0,0.06605317]
[1732767899283,0.004,95718.0,95717.0,0.06605317]
[1732767899482,0.009,95718.0,95717.0,0.06605317]
[1732767899983,0.004,95718.0,95717.0,0.06605317]
[1732767900185,0.01,95718.0,95717.0,0.06605317]
[1732767900689,0.008,95718.0,95717.0,0.06605317]
[1732767901586,0.004,95718.0,95717.0,0.06605317]
[1732767901782,0.008,95718.0,95717.0,0.01386617]
[1732767902585,0.009,95718.0,95717.0,0.01386617]
[1732767903189,0.004,95718.0,95717.0,0.01386617]
[1732767903390,0.006,95718.0,95717.0,0.01486617]
[1732767903590,0.01,95718.0,95717.0,0.01486617]
[1732767903891,0.004,95718.0,95717.0,0.01386617]
[1732767904092,0.004,95718.0,95717.0,0.01486617]
[1732767904093,0.012,95718.0,95717.0,0.01486617]
[1732767904394,0.012,95718.0,95717.0,0.01506842]
[1732767904584,0.012,95718.0,95717.0,0.04576842]
[1732767904996,0.13311358,95718.0,95717.0,0.40656842]
[1732767905183,0.13311358,95718.0,95717.0,0.59132531]
[1732767905184,0.014,95718.0,95717.0,0.59132531]
[1732767905490,0.014,95718.0,95717.0,0.40656842]
[1732767905882,0.05374321,95738.0,95717.0,1.05207887]
[1732767905883,0.12511358,95729.0,95717.0,1.05207887]
[1732767906082,0.12511358,95735.0,95728.0,0.3608]
[1732767906293,0.12511358,95740.0,95730.0,0.18481357]
[1732767906497,0.12511358,95740.0,95729.0,0.05705702]
[1732767906498,0.12511358,95742.0,95731.0,0.23977059]
[1732767906795,0.12511358,95744.0,95735.0,0.052177]
[1732767907096,0.15641989,95749.0,95735.0,0.07603325]
[1732767907097,0.12511358,95745.0,95735.0,0.07603325]
[1732767907296,0.12501833,95748.0,95735.0,1.38670267]
[1732767907482,0.21886282,95770.0,95747.0,0.412971]
[1732767907483,0.12501833,95760.0,95747.0,0.412971]
[1732767907684,0.17144,95770.0,95747.0,0.412971]
[1732767907685,0.12501833,95761.0,95760.0,0.052164]
[1732767907984,0.12501833,95762.0,95760.0,0.052164]
[1732767908190,0.12501833,95762.0,95761.0,7.781e-05]
[1732767908696,0.052162,95763.0,95761.0,7.781e-05]
[1732767909384,0.12481443,95762.0,95761.0,7.781e-05]
[1732767909589,0.12474593,95764.0,95762.0,0.052163]
[1732767909792,0.12474593,95763.0,95762.0,0.052163]
[1732767910083,0.052162,95764.0,95762.0,0.052163]
[1732767911390,0.17144,95766.0,95761.0,0.02273113]
[1732767911391,0.052163,95762.0,95761.0,0.00607781]
[1732767911698,0.052163,95762.0,95761.0,0.00507781]
[1732767912087,0.052163,95762.0,95748.0,0.05217]
[1732767912088,0.05217,95749.0,95748.0,0.05217]
[1732767912282,0.052167,95754.0,95753.0,0.052167]
[1732767913382,0.053167,95754.0,95753.0,0.053167]
[1732767913588,0.054167,95754.0,95753.0,0.054167]
[1732767916300,0.002,95754.0,95753.0,0.054167]
[1732767923293,0.002,95754.0,95753.0,0.367487]
[1732767923294,0.00192219,95754.0,95753.0,0.367487]
[1732767923493,0.00192219,95754.0,95753.0,0.37727272]
[1732767924300,0.12476307,95777.0,95764.0,0.052161]
[1732767924608,0.12476307,95777.0,95771.0,0.3608]
[1732767924609,8.785e-05,95777.0,95771.0,0.3608]
[1732767924804,8.785e-05,95777.0,95775.0,0.052155]
[1732767926506,0.05224285,95777.0,95775.0,0.061155]
[1732767927708,0.05224285,95777.0,95775.0,0.009]
[1732767927904,0.05224285,95777.0,95775.0,0.018]
[1732767929096,0.17124,95781.0,95777.0,0.94775715]
[1732767929293,0.052154,95778.0,95777.0,0.94775715]
[1732767929801,0.49006922,95778.0,95777.0,0.94775715]
[1732767930015,0.36550891,95778.0,95777.0,0.94775715]
[1732767930409,0.36550891,95778.0,95777.0,0.95675715]
[1732767930707,0.38262904,95778.0,95777.0,0.96575715]
[1732767932007,0.38262904,95778.0,95777.0,0.95675715]
[1732767932202,0.38262904,95778.0,95777.0,0.96575715]
[1732767932505,0.05226891,95778.0,95777.0,0.96575715]
[1732767932814,0.22350891,95778.0,95777.0,0.96575715]
[1732767933616,0.22350891,95778.0,95777.0,1.01791215]
[1732767933617,0.05226891,95778.0,95777.0,1.01791215]
[1732767935802,0.00011491,95778.0,95777.0,1.01791215]
[1732767936007,0.00011491,95778.0,95777.0,1.03452508]
[1732767936312,0.00011491,95778.0,95777.0,1.02652508]
[1732767936514,0.00011491,95778.0,95777.0,1.01752508]
[1732767936701,0.00011491,95778.0,95777.0,1.01952508]
[1732767937308,0.00011491,95778.0,95777.0,1.01752508]
[1732767937502,0.00011491,95778.0,95777.0,1.01852508]
[1732767939712,0.00011491,95778.0,95777.0,1.02830872]
[1732767940102,0.00011491,95778.0,95777.0,1.04201343]
[1732767940500,0.00011491,95778.0,95777.0,1.02830872]
[1732767941214,0.12483041,95799.0,95793.0,0.052146]
[1732767941414,0.22483041,95800.0,95797.0,0.3608]
[1732767941603,0.1,95800.0,95797.0,0.3608]
[1732767942509,0.1,95800.0,95798.0,0.052143]
[1732767943605,0.152142,95800.0,95798.0,0.052143]
[1732767944209,0.152142,95800.0,95798.0,0.009]
[1732767945810,0.152142,95800.0,95798.0,0.018]
[1732767946302,0.512942,95800.0,95798.0,0.018]
[1732767946716,0.033,95799.0,95798.0,0.018]
[1732767948514,0.46140001,95800.0,95798.0,0.018]
[1732767948718,0.052143,95799.0,95798.0,0.018]
[1732767949009,0.052143,95799.0,95798.0,0.009]
[1732767949200,0.052143,95799.0,95798.0,0.018]
[1732767949712,0.052143,95799.0,95798.0,0.009]
[1732767949902,0.052143,95799.0,95798.0,0.018]
[1732767950409,0.052143,95799.0,95798.0,0.01]
[1732767950803,0.052143,95799.0,95798.0,0.001]
[1732767951003,0.114643,95799.0,95798.0,0.002]
[1732767952608,0.294203,95799.0,95798.0,0.002]
[1732767953207,0.38732914,95799.0,95798.0,0.002]
[1732767953512,0.262603,95799.0,95798.0,0.002]
[1732767953706,0.083043,95799.0,95798.0,0.002]
[1732767954112,0.20776914,95799.0,95798.0,0.002]
[1732767954510,0.083043,95799.0,95798.0,0.002]
[1732767954907,0.052143,95799.0,95798.0,0.002]
[1732767955103,0.17688617,95799.0,95798.0,0.054143]
[1732767955418,0.17688617,95799.0,95798.0,0.002]
[1732767955419,0.052143,95799.0,95798.0,0.002]
[1732767955917,0.17688617,95799.0,95798.0,0.002]
[1732767956217,0.052143,95799.0,95798.0,0.002]
[1732767957010,0.17688617,95799.0,95798.0,0.002]
[1732767957211,0.052143,95799.0,95798.0,0.002]
[1732767957519,0.17688617,95799.0,95798.0,0.002]
[1732767957920,0.052143,95799.0,95798.0,0.002]
[1732767961419,0.231703,95799.0,95798.0,0.002]
[1732767961625,0.38562289,95799.0,95776.0,0.18481357]
[1732767961824,0.052152,95781.0,95780.0,0.08234593]
[1732767962125,0.052153,95781.0,95780.0,0.06610242]
[1732767962323,0.3608,95789.0,95775.0,0.01665779]
[1732767962324,0.12484267,95785.0,95775.0,0.01665779]
[1732767962521,0.3608,95789.0,95775.0,0.01665779]
[1732767962522,0.12484267,95784.0,95776.0,0.01405334]
[1732767962730,0.12484267,95784.0,95775.0,0.01665779]
[1732767962731,0.12484267,95785.0,95775.0,0.01665779]
[1732767962917,0.052149,95788.0,95787.0,0.052149]
[1732767963221,0.12484267,95794.0,95787.0,0.01304424]
[1732767963421,0.17698867,95793.0,95792.0,0.052146]
[1732767963626,0.052146,95793.0,95792.0,0.05540706]
[1732767964122,0.12490539,95793.0,95792.0,0.052146]
[1732767964324,0.17956,95795.0,95794.0,0.052145]
[1732767964523,0.30446539,95795.0,95794.0,0.052145]
[1732767965226,0.052144,95796.0,95787.0,0.001]
[1732767965424,0.052144,95796.0,95795.0,0.052145]
[1732767966328,0.054144,95796.0,95795.0,0.052145]
[1732767967023,0.052144,95796.0,95795.0,0.052145]
[1732767967219,0.055144,95796.0,95795.0,0.054145]
[1732767968129,0.003,95796.0,95795.0,0.054145]
[1732767969538,0.003,95796.0,95795.0,0.06803429]
[1732767970234,0.003,95796.0,95795.0,0.08522579]
[1732767973032,0.055144,95796.0,95795.0,0.08522579]
[1732767973228,0.055144,95796.0,95795.0,0.0713365]
[1732767973727,0.055144,95796.0,95795.0,0.08111895]
[1732767976224,0.055144,95796.0,95795.0,0.0713365]
[1732767976636,0.055144,95796.0,95795.0,0.08527506]
[1732767976819,0.003,95796.0,95795.0,0.08527506]
[1732767977133,0.12681243,95799.0,95798.0,0.052143]
[1732767977325,0.12681243,95799.0,95798.0,0.06518598]
[1732767978032,0.12681243,95799.0,95798.0,0.06192524]
[1732767978534,0.12881243,95799.0,95798.0,0.06392524]
[1732767979519,0.12881243,95799.0,95798.0,0.054143]
[1732767979726,0.002,95799.0,95798.0,0.06856715]
[1732767980724,0.054143,95799.0,95798.0,0.06856715]
[1732767982123,0.053143,95799.0,95798.0,0.06756715]
[1732767983131,0.052143,95799.0,95798.0,0.06656715]
[1732767983430,0.052143,95799.0,95798.0,0.06756715]
[1732767985635,0.052143,95799.0,95798.0,0.06748412]
[1732767990330,0.1,95800.0,95799.0,0.052143]
[1732767990535,0.1,95800.0,95799.0,0.06648412]
[1732767991234,0.152142,95800.0,95799.0,0.06648412]
[1732767991435,0.152142,95800.0,95799.0,0.06748412]
[1732767991938,0.152142,95800.0,95799.0,0.06848412]
[1732767992537,0.152142,95800.0,95799.0,0.06859014]
[1732767993331,0.1,95800.0,95799.0,0.06859014]
[1732767993527,0.1,95800.0,95799.0,0.25340371]
[1732767993825,0.1,95800.0,95799.0,0.06859014]
[1732767994531,0.1,95800.0,95799.0,0.25340371]
[1732767995031,0.1,95800.0,95799.0,0.06859014]
[1732767995233,0.1,95800.0,95799.0,0.25340371]
[1732767995433,0.152142,95800.0,95799.0,0.25340371]
[1732767996642,0.152142,95800.0,95799.0,0.06859014]
[1732767997441,0.152142,95800.0,95799.0,0.25340371]
[1732767997740,0.1,95800.0,95799.0,0.06859014]
[1732767998736,0.15071429,95800.0,95799.0,0.06859014]
[1732767999137,0.15071429,95800.0,95799.0,0.09180569]
[1732767999338,0.15071429,95800.0,95799.0,0.06865313]
[1732767999537,0.15071429,95800.0,95799.0,0.06865248]
[1732768000040,0.20285629,95800.0,95799.0,0.06765248]
[1732768000441,0.20285629,95800.0,95799.0,0.06665248]
[1732768000743,0.20285629,95800.0,95799.0,0.06765248]
[1732768002343,0.20285658,95800.0,95799.0,0.06765248]
[1732768003342,0.17025003,95800.0,95799.0,0.07091313]
[1732768004243,0.17025003,95800.0,95799.0,0.06765248]
[1732768005743,0.11953545,95800.0,95799.0,0.06765248]
[1732768005940,0.11953545,95800.0,95799.0,0.053143]
[1732768006141,0.11953545,95800.0,95799.0,0.07745956]
[1732768006442,0.11953545,95800.0,95799.0,0.06292512]
[1732768006646,0.11953545,95800.0,95799.0,0.07745924]
[1732768007245,0.27598149,95800.0,95799.0,0.06767712]
[1732768007442,0.11953545,95800.0,95799.0,0.06767712]
[1732768007643,0.11953545,95800.0,95799.0,0.25249069]
[1732768007949,0.11953545,95800.0,95799.0,0.06767712]
[1732768008140,0.11953545,95800.0,95799.0,0.25249069]
[1732768008340,0.11953545,95800.0,95799.0,0.06767712]
[1732768008546,0.06739345,95800.0,95799.0,0.25262992]
[1732768008741,0.06739345,95800.0,95799.0,0.06767712]
[1732768012747,0.11953545,95800.0,95799.0,0.06767712]
[1732768013344,0.11953545,95800.0,95799.0,0.25266412]
[1732768013658,0.17025178,95800.0,95799.0,0.01553412]
[1732768016545,0.1702518,95800.0,95799.0,0.01553412]
[1732768018757,0.1702518,95800.0,95799.0,0.03272585]
[1732768018960,0.1702518,95800.0,95799.0,0.01553412]
[1732768020755,0.17025256,95800.0,95799.0,0.01553412]
[1732768020962,0.44720164,95800.0,95799.0,0.06767712]
[1732768021356,0.27596164,95800.0,95799.0,0.06767712]
[1732768021551,0.34149093,95800.0,95799.0,0.08423131]
[1732768021758,0.34149093,95800.0,95799.0,0.07947936]
[1732768021759,0.29077545,95800.0,95799.0,0.07947936]
[1732768021959,0.34149099,95800.0,95799.0,0.07947936]
[1732768022353,0.3414906,95800.0,95799.0,0.07947936]
[1732768022759,0.44720312,95800.0,95799.0,0.07947936]
[1732768023466,0.29077545,95800.0,95799.0,0.09360909]
[1732768023669,0.29077545,95800.0,95799.0,0.06727273]
[1732768023856,0.29077545,95800.0,95799.0,0.01512973]
[1732768024051,0.44720312,95800.0,95799.0,0.01512973]
[1732768024762,0.34149293,95800.0,95799.0,0.01078252]
[1732768025262,0.65465333,95800.0,95790.0,0.18498873]
[1732768025464,0.3608,95791.0,95788.0,0.18498873]
[1732768025663,0.052149,95787.0,95786.0,0.052149]
[1732768025853,0.052149,95787.0,95786.0,0.25123326]
[1732768026053,0.052149,95787.0,95786.0,0.01409553]
[1732768027062,0.052149,95787.0,95786.0,0.18495776]
[1732768027568,0.052149,95787.0,95785.0,0.18495776]
[1732768028367,0.052149,95787.0,95782.0,0.052151]
[1732768028368,0.05215,95785.0,95784.0,0.18495776]
[1732768028570,0.17720344,95785.0,95784.0,0.01383332]
[1732768028863,0.001,95787.0,95784.0,0.01388304]
[1732768029068,0.052151,95784.0,95782.0,0.23710876]
[1732768029265,0.17720462,95784.0,95783.0,0.01388197]
[1732768030067,0.17720462,95784.0,95783.0,0.01390841]
[1732768031959,0.17820462,95784.0,95783.0,0.01390841]
[1732768032159,0.17820462,95784.0,95777.0,0.0823393]
[1732768032160,0.41707597,95784.0,95765.0,0.18495776]
[1732768032355,0.052155,95777.0,95764.0,0.052162]
[1732768032561,0.0318,95776.0,95764.0,0.052162]
[1732768033072,0.0318,95776.0,95759.0,0.21815776]
[1732768033073,0.0318,95776.0,95765.0,0.052161]
[1732768033567,0.0318,95776.0,95759.0,0.18495776]
[1732768034068,0.0318,95776.0,95757.0,0.052165]
[1732768034069,0.34504,95776.0,95757.0,0.052165]
[1732768034274,0.052166,95756.0,95755.0,0.18495776]
[1732768034570,0.17124,95759.0,95751.0,0.18495776]
[1732768034759,0.17124,95758.0,95752.0,0.18495776]
[1732768034958,0.17124,95758.0,95757.0,0.052165]
[1732768035156,0.17124,95758.0,95757.0,0.05227991]
[1732768035559,0.17124,95758.0,95757.0,0.06206579]
[1732768036060,0.17124,95758.0,95757.0,0.07106579]
[1732768037167,0.052163,95762.0,95761.0,0.052163]
[1732768037466,0.223403,95762.0,95761.0,0.06194888]
[1732768038273,0.052163,95762.0,95761.0,0.052163]
[1732768038473,0.223403,95762.0,95761.0,0.056163]
[1732768038772,0.17124,95762.0,95761.0,0.056163]
[1732768038970,0.17124,95762.0,95761.0,0.063163]
[1732768039476,0.0823393,95780.0,95761.0,0.063163]
[1732768039477,0.412955,95777.0,95772.0,0.052157]
[1732768039778,0.223395,95776.0,95774.0,0.052156]
[1732768040368,0.223395,95776.0,95775.0,0.052156]
[1732768042268,0.052155,95776.0,95775.0,0.052156]
[1732768042465,0.31697778,95776.0,95775.0,0.052156]
[1732768042867,0.223275,95776.0,95775.0,0.052156]
[1732768043274,0.31682208,95776.0,95775.0,0.052156]
[1732768043471,0.14570208,95776.0,95775.0,0.052156]
[1732768043669,0.223275,95776.0,95775.0,0.052156]
[1732768044169,0.052159,95770.0,95769.0,0.052158]
[1732768045365,0.052159,95770.0,95769.0,0.057158]
[1732768046378,0.052159,95770.0,95769.0,0.005]
[1732768046768,0.14571498,95770.0,95769.0,0.005]
[1732768047075,0.052159,95770.0,95769.0,0.005]
[1732768048870,0.365399,95770.0,95769.0,0.005]
[1732768049177,0.052159,95770.0,95769.0,0.005]
[1732768050468,0.365399,95770.0,95757.0,0.00011491]
[1732768050672,0.40869021,95772.0,95757.0,0.00011491]
[1732768050673,0.412965,95758.0,95757.0,0.00011491]
[1732768050871,0.584125,95758.0,95757.0,0.00011491]
[1732768051678,0.584125,95758.0,95757.0,0.00511491]
[1732768052378,0.584125,95758.0,95757.0,0.01111491]
[1732768053474,0.584125,95758.0,95757.0,0.01011491]
[1732768054176,0.584125,95758.0,95757.0,0.00611491]
[1732768054375,0.585125,95758.0,95757.0,0.00611491]
[1732768055074,0.413965,95758.0,95757.0,0.00611491]
[1732768055272,0.585125,95758.0,95757.0,0.00611491]
[1732768055470,0.585125,95758.0,95757.0,0.00011491]
[1732768055667,0.586125,95758.0,95757.0,0.00011491]
[1732768055868,0.225325,95758.0,95757.0,0.00011491]
[1732768057877,0.225325,95758.0,95757.0,0.03081491]
[1732768058075,0.31897691,95758.0,95757.0,0.03081491]
[1732768058478,0.225325,95758.0,95757.0,0.03081491]
[1732768058678,0.225325,95758.0,95757.0,0.08297991]
[1732768060274,0.225325,95758.0,95757.0,0.09662474]
[1732768060478,0.225325,95758.0,95757.0,0.00011491]
[1732768069384,0.054165,95758.0,95757.0,0.00011491]
[1732768069683,0.225325,95758.0,95757.0,0.00011491]
[1732768070489,0.586125,95758.0,95757.0,0.00011491]
[1732768071890,0.586005,95758.0,95757.0,0.00011491]
[1732768072283,0.225205,95758.0,95757.0,0.00011491]
[1732768072592,0.35020573,95758.0,95757.0,0.00011491]
[1732768072784,0.225205,95758.0,95757.0,0.00011491]
[1732768072998,0.225205,95758.0,95757.0,0.00990133]
[1732768073392,0.054165,95758.0,95757.0,0.00990133]
[1732768073591,0.225205,95758.0,95757.0,0.00011491]
[1732768074587,0.225205,95758.0,95757.0,0.0138785]
[1732768074890,0.225205,95758.0,95757.0,0.19883626]
[1732768075092,0.002,95758.0,95757.0,0.00011491]
[1732768075387,0.002,95758.0,95757.0,0.009901]
[1732768075580,0.002,95758.0,95757.0,0.57095437]
[1732768075779,0.002,95758.0,95757.0,0.38599661]
[1732768075980,0.002,95758.0,95757.0,0.38599862]
[1732768077588,0.002,95758.0,95757.0,0.63234115]
[1732768077795,0.002,95758.0,95757.0,0.31906115]
[1732768078182,0.002,95758.0,95757.0,0.63234115]
[1732768078386,0.002,95758.0,95757.0,0.30927506]
[1732768078592,0.002,95758.0,95757.0,0.62298973]
[1732768079096,0.002,95758.0,95757.0,0.30970973]
[1732768079295,0.002,95758.0,95757.0,0.06293253]
[1732768079491,0.002,95758.0,95757.0,0.04915663]
[1732768079796,0.002,95758.0,95757.0,0.06280812]
[1732768080290,0.002,95758.0,95757.0,0.07645971]
[1732768081290,0.002,95758.0,95757.0,0.04445971]
[1732768081695,0.09579585,95758.0,95757.0,0.29120572]
[1732768081896,0.002,95758.0,95757.0,0.04445971]
[1732768082698,0.002,95758.0,95757.0,0.02741799]
[1732768082899,0.09579903,95758.0,95757.0,0.0137664]
[1732768083102,0.002,95758.0,95757.0,0.02756225]
[1732768083597,0.002,95758.0,95757.0,0.27430826]
[1732768083796,0.002,95758.0,95757.0,0.02756225]
[1732768083991,0.002,95758.0,95757.0,0.04978404]
[1732768084399,0.09379714,95767.0,95766.0,0.052161]
[1732768084590,0.17104,95769.0,95768.0,0.052159]
[1732768084989,0.17104,95769.0,95768.0,0.06595485]
[1732768085191,0.12500073,95773.0,95772.0,0.052157]
[1732768085699,0.17104,95775.0,95772.0,0.052157]
[1732768085700,0.12500073,95774.0,95772.0,0.052157]
[1732768086400,0.001,95773.0,95772.0,0.052157]
[1732768087802,0.003,95773.0,95772.0,0.052157]
[1732768088193,0.29604073,95775.0,95767.0,0.21731317]
[1732768088398,0.09374764,95768.0,95767.0,0.26947317]
[1732768088601,0.09374764,95769.0,95767.0,0.28332917]
[1732768088896,0.09374764,95769.0,95768.0,0.013856]
[1732768089605,0.002,95773.0,95768.0,0.19886917]
[1732768089899,0.002,95773.0,95769.0,0.013856]
[1732768090100,0.002,95773.0,95770.0,0.013856]
[1732768090297,0.002,95773.0,95767.0,0.23438812]
[1732768090502,0.09372836,95769.0,95767.0,0.28654812]
[1732768090798,0.09372836,95769.0,95768.0,0.01393304]
[1732768093595,0.09672836,95769.0,95768.0,0.01393304]
[1732768094404,0.003,95769.0,95768.0,0.01393304]
[1732768094707,0.09672836,95769.0,95768.0,0.06609204]
[1732768094905,0.09372836,95769.0,95768.0,0.06609204]
[1732768095201,0.09672836,95769.0,95768.0,0.06609204]
[1732768095595,0.003,95769.0,95768.0,0.06609204]
[1732768096299,0.171,95776.0,95768.0,0.06609204]
[1732768096504,0.171,95776.0,95775.0,0.052156]
[1732768098292,0.174,95776.0,95775.0,0.053156]
[1732768100897,0.171,95776.0,95775.0,0.052156]
[1732768101099,0.171,95776.0,95775.0,0.42686438]
[1732768101306,0.171,95777.0,95776.0,0.052155]
[1732768101496,0.171,95777.0,95776.0,0.06606382]
[1732768102196,0.052151,95784.0,95783.0,0.052151]
[1732768102396,0.222951,95784.0,95783.0,0.412951]
[1732768104908,0.222951,95784.0,95783.0,0.413951]
[1732768105099,0.052151,95784.0,95783.0,0.413951]
[1732768105305,0.222951,95784.0,95783.0,0.413951]
[1732768105899,0.222951,95784.0,95783.0,0.412951]
[1732768106409,0.1708,95784.0,95783.0,0.412951]
[1732768107296,0.49127001,95786.0,95783.0,0.3608]
[1732768107496,0.49071,95786.0,95785.0,0.05215]
[1732768107701,0.66151,95786.0,95785.0,0.05215]
[1732768108498,0.49071,95786.0,95785.0,0.05215]
[1732768108704,0.66151,95786.0,95785.0,0.05215]
[1732768108905,0.66151,95786.0,95785.0,0.05315]
[1732768110302,0.15622678,95795.0,95785.0,0.05315]
[1732768110499,0.0882696,95800.0,95785.0,0.05315]
[1732768110500,0.1708,95794.0,95792.0,0.3608]
[1732768111513,0.1708,95794.0,95793.0,0.052146]
[1732768112505,0.08422731,95800.0,95799.0,0.052143]
[1732768112709,0.25502731,95800.0,95799.0,0.052143]
[1732768113812,0.30716931,95800.0,95799.0,0.052143]
[1732768114212,0.30716931,95800.0,95799.0,0.053143]
[1732768114708,0.30716931,95800.0,95799.0,0.054143]
[1732768116015,0.30716931,95800.0,95799.0,0.002]
[1732768116202,0.30716931,95800.0,95771.0,0.052157]
[1732768116203,0.052151,95784.0,95783.0,0.18554153]